bitfinex/quotes_SOLUSD_20260304
["timestamp","ask_amount","ask_price","bid_price","bid_amount"]
[1772597212821,0.28432314,85.593,85.563,4.27105495]
[1772597213339,29.19895543,85.62,85.563,4.27105495]
[1772597213340,0.28432314,85.594,85.563,4.27105495]
[1772597213713,0.28432314,85.599,85.563,4.27105495]
[1772597213920,11.9667026,85.599,85.563,4.27105495]
[1772597214114,1.16192529,85.589,85.552,4.27105495]
[1772597214819,0.28432314,85.589,85.552,4.27105495]
[1772597215836,0.28432314,85.589,85.551,40.91126929]
[1772597215837,0.87760215,85.598,85.56,5.63373434]
[1772597216146,0.28432314,85.597,85.561,4.27105495]
[1772597216318,0.28432314,85.595,85.562,11.68743133]
[1772597216522,5.63373434,85.58,85.553,11.68866083]
[1772597216737,6.51133649,85.58,85.553,11.68866083]
[1772597217626,5.63373434,85.58,85.553,11.68866083]
[1772597217937,0.28432314,85.585,85.553,11.68866083]
[1772597218533,0.28432314,85.587,85.554,4.27105495]
[1772597219337,5.63373434,85.59,85.554,4.27105495]
[1772597219338,0.28432314,85.589,85.554,4.27105495]
[1772597219543,5.63373434,85.6,85.554,4.27105495]
[1772597219836,0.28432314,85.599,85.561,4.27105495]
[1772597220640,5.63373434,85.6,85.563,4.27105495]
[1772597220938,5.63373434,85.59,85.563,4.27105495]
[1772597221733,0.28432314,85.596,85.563,4.27105495]
[1772597222325,5.63373434,85.59,85.563,4.27105495]
[1772597222837,11.96806754,85.589,85.557,4.27105495]
[1772597223045,5.63373434,85.58,85.552,11.68879745]
[1772597223236,0.87760215,85.581,85.552,11.68879745]
[1772597223433,0.87760215,85.581,85.552,15.9598524]
[1772597223737,0.87760215,85.581,85.553,4.27105495]
[1772597224543,0.28432314,85.584,85.555,4.27105495]
[1772597226745,0.28432314,85.582,85.556,11.68825097]
[1772597228143,11.68456352,85.583,85.541,11.69030055]
[1772597228144,4.2716135,85.569,85.541,11.69030055]
[1772597229335,4.55593664,85.576,85.541,11.69030055]
[1772597230149,4.55593664,85.576,85.542,4.27105495]
[1772597230650,4.55593664,85.576,85.544,4.27105495]
[1772597231951,4.2716135,85.576,85.544,4.27105495]
[1772597232143,0.28432314,85.589,85.551,4.27105495]
[1772597232330,0.14216157,85.589,85.551,4.27105495]
[1772597232649,5.63373434,85.59,85.552,40.91079109]
[1772597232828,0.14216157,85.589,85.553,4.27105495]
[1772597233246,0.28432314,85.589,85.553,4.27105495]
[1772597234253,0.28432314,85.589,85.555,4.27105495]
[1772597236248,0.28432314,85.589,85.557,4.27105495]
[1772597236552,4.2716135,85.579,85.542,29.22535583]
[1772597236848,4.2716135,85.579,85.543,40.91509532]
[1772597238252,4.47583928,85.587,85.543,40.91509532]
[1772597238633,4.47583928,85.587,85.546,4.30064262]
[1772597239758,5.63373434,85.58,85.546,4.30064262]
[1772597240239,0.28432314,85.584,85.546,4.30064262]
[1772597240650,4.67336892,85.584,85.546,4.30064262]
[1772597241559,4.38904578,85.569,85.547,11.68948063]
[1772597241970,5.63373434,85.57,85.548,4.27569929]
[1772597242258,0.28432314,85.575,85.548,4.27569929]
[1772597242635,4.38904578,85.569,85.542,11.69009616]
[1772597243537,5.63373434,85.56,85.542,10.3679624]
[1772597243754,4.38904578,85.559,85.542,10.3679624]
[1772597243962,5.63373434,85.56,85.539,4.27569929]
[1772597244138,0.28432314,85.566,85.539,4.27569929]
[1772597244652,4.38904578,85.567,85.539,4.27569929]
[1772597245161,5.63373434,85.57,85.539,4.27569929]
[1772597245455,0.28432314,85.579,85.541,4.27569929]
[1772597245655,5.63373434,85.58,85.543,4.27569929]
[1772597245849,10.02278012,85.58,85.543,4.27569929]
[1772597246150,5.63373434,85.58,85.543,4.27569929]
[1772597247338,10.02278012,85.58,85.545,4.27569929]
[1772597247545,0.28432314,85.568,85.539,11.69051778]
[1772597247752,4.38904578,85.549,85.521,11.69303445]
[1772597247957,4.38904578,85.549,85.522,4.27569929]
[1772597249261,40.89788382,85.579,85.51,61.22263392]
[1772597249262,5.63373434,85.53,85.51,55.58889958]
[1772597249465,4.38904578,85.529,85.51,55.58889958]
[1772597250541,4.38904578,85.529,85.511,11.69440188]
[1772597250854,5.63373434,85.53,85.511,11.69440188]
[1772597251158,0.28432314,85.536,85.512,4.27569929]
[1772597251462,5.63373434,85.53,85.512,4.27569929]
[1772597252543,5.62880162,85.53,85.512,4.27569929]
[1772597253265,0.28432314,85.536,85.513,11.69412837]
[1772597254578,5.62880162,85.53,85.513,4.27569929]
[1772597255469,4.38904578,85.519,85.51,54.82098214]
[1772597256249,5.62880162,85.52,85.51,54.82098214]
[1772597257066,0.28432314,85.525,85.51,54.82098214]
[1772597257267,5.62880162,85.53,85.51,66.51551068]
[1772597257445,0.28432314,85.539,85.511,4.27569929]
[1772597258543,4.34515532,85.538,85.511,4.27569929]
[1772597258855,0.28432314,85.537,85.513,4.27569929]
[1772597259262,0.28432314,85.539,85.513,4.27569929]
[1772597260961,0.28432314,85.549,85.515,4.27569929]
[1772597261164,4.62947846,85.549,85.515,4.27569929]
[1772597261473,5.62880162,85.54,85.515,4.27569929]
[1772597262969,11.97489703,85.539,85.51,54.82098214]
[1772597263269,4.34515532,85.529,85.511,11.69440188]
[1772597264370,11.69057389,85.539,85.511,11.69440188]
[1772597264371,5.62880162,85.53,85.511,11.69440188]
[1772597266075,5.62880162,85.53,85.511,15.97010117]
[1772597266276,0.28432314,85.535,85.512,4.27569929]
[1772597266471,9.97395694,85.53,85.51,54.82098214]
[1772597267074,11.97544373,85.535,85.491,15.972837]
[1772597267075,4.30170376,85.519,85.491,15.972837]
[1772597267257,4.30170376,85.519,85.492,4.27569929]
[1772597267758,5.62880162,85.52,85.494,4.27569929]
[1772597268075,0.28432314,85.525,85.494,4.27569929]
[1772597268375,4.42128211,85.525,85.494,4.27569929]
[1772597270577,4.42128211,85.525,85.496,4.4849577]
[1772597272576,4.42128211,85.525,85.498,4.4849577]
[1772597273670,1.89161162,85.52,85.499,11.69604322]
[1772597273976,1.89161162,85.52,85.5,4.4849577]
[1772597275252,1.89161162,85.53,85.5,4.4849577]
[1772597275757,1.89161162,85.53,85.502,4.4849577]
[1772597276275,1.89161162,85.52,85.502,4.4849577]
[1772597277475,0.28432314,85.529,85.504,4.4849577]
[1772597278557,1.89161162,85.52,85.498,4.4849577]
[1772597280165,0.28432314,85.527,85.5,4.4849577]
[1772597280960,1.89161162,85.52,85.5,4.4849577]
[1772597281357,11.69180404,85.53,85.47,0.2]
[1772597281358,0.16309734,85.506,85.476,4.4849577]
[1772597281576,1.89161162,85.5,85.476,4.4849577]
[1772597281970,1.89161162,85.49,85.47,4.6849577]
[1772597282374,0.16309734,85.488,85.47,0.2]
[1772597282565,0.28432314,85.499,85.471,4.4849577]
[1772597283583,1.89161162,85.49,85.471,4.4849577]
[1772597284080,0.44742048,85.489,85.47,0.2]
[1772597284382,1.89161162,85.48,85.47,0.2]
[1772597284765,0.28432314,85.479,85.46,0.2]
[1772597285167,1.89161162,85.47,85.445,4.4849577]
[1772597285471,0.16309734,85.468,85.438,4.4849577]
[1772597285785,0.28432314,85.467,85.438,4.4849577]
[1772597285976,0.28432314,85.459,85.438,4.4849577]
[1772597286671,0.28432314,85.459,85.426,4.4849577]
[1772597286672,0.44742048,85.458,85.426,4.4849577]
[1772597286983,0.28432314,85.458,85.426,4.4849577]
[1772597287380,0.28432314,85.459,85.426,4.4849577]
[1772597289162,0.28432314,85.459,85.428,4.4849577]
[1772597289364,0.16309734,85.494,85.441,4.4849577]
[1772597289588,6.10481368,85.549,85.461,4.4849577]
[1772597289589,11.69487458,85.508,85.461,4.4849577]
[1772597290163,0.16309734,85.504,85.461,4.4849577]
[1772597290478,0.16309734,85.501,85.461,4.4849577]
[1772597290879,11.69529317,85.505,85.461,4.4849577]
[1772597292385,0.16309734,85.509,85.463,4.4849577]
[1772597292386,11.69582787,85.501,85.463,4.4849577]
[1772597292787,0.16309734,85.516,85.463,4.4849577]
[1772597292982,1.89161162,85.51,85.471,4.4849577]
[1772597293183,0.28432314,85.509,85.471,4.4849577]
[1772597294681,29.2312842,85.525,85.481,4.4849577]
[1772597294682,0.28432314,85.518,85.481,4.4849577]
[1772597294870,0.28432314,85.509,85.481,4.4849577]
[1772597295064,11.97776779,85.518,85.481,4.4849577]
[1772597295065,1.89161162,85.5,85.481,4.4849577]
[1772597295303,1.89161162,85.49,85.463,4.4849577]
[1772597295590,1.89161162,85.48,85.463,4.4849577]
[1772597295999,1.89161162,85.48,85.451,40.95914617]
[1772597296180,1.89161162,85.47,85.451,11.70261319]
[1772597297085,1.89161162,85.47,85.439,29.26060161]
[1772597298200,1.89161162,85.47,85.44,4.4849577]
[1772597300183,1.89161162,85.48,85.442,4.18030608]
[1772597300872,4.14416663,85.479,85.442,4.18030608]
[1772597301077,1.89161162,85.47,85.442,4.18030608]
[1772597301389,0.14216157,85.489,85.451,4.18030608]
[1772597301589,0.28432314,85.489,85.451,4.18030608]
[1772597301892,1.89161162,85.5,85.451,4.18030608]
[1772597302192,0.28432314,85.499,85.461,4.18030608]
[1772597302388,0.28432314,85.499,85.46,1.89161162]
[1772597302389,0.28432314,85.499,85.463,4.18030608]
[1772597302687,0.14216157,85.499,85.463,4.18030608]
[1772597303086,1.89161162,85.49,85.463,4.18030608]
[1772597303477,0.14216157,85.499,85.464,4.18030608]
[1772597303676,1.89161162,85.49,85.464,4.18030608]
[1772597304895,1.89161162,85.49,85.466,4.18030608]
[1772597305492,4.42848977,85.499,85.466,4.18030608]
[1772597305883,1.89161162,85.5,85.466,4.18030608]
[1772597306276,6.03577825,85.5,85.466,4.18030608]
[1772597307088,4.14416663,85.496,85.468,4.18030608]
[1772597307292,0.28432314,85.499,85.468,4.18030608]
[1772597307692,1.89161162,85.49,85.468,4.18030608]
[1772597309096,1.89161162,85.49,85.47,4.18030608]
[1772597309596,4.14416663,85.503,85.47,4.18030608]
[1772597309776,1.89161162,85.5,85.47,4.18030608]
[1772597310887,4.14416663,85.499,85.47,4.18030608]
[1772597311394,4.14416663,85.499,85.472,4.18030608]
[1772597312587,4.14416663,85.499,85.441,58.51991432]
[1772597312588,4.14416663,85.489,85.457,4.18030608]
[1772597312787,4.14416663,85.489,85.459,4.18030608]
[1772597313896,4.14416663,85.489,85.461,4.18030608]
[1772597314682,1.89289443,85.49,85.461,4.18030608]
[1772597315080,1.89289443,85.5,85.461,4.18030608]
[1772597316794,0.28432314,85.509,85.463,4.18030608]
[1772597317000,4.10272496,85.529,85.481,4.18030608]
[1772597317312,0.28432314,85.528,85.491,4.18030608]
[1772597318311,1.89289443,85.52,85.493,4.18030608]
[1772597318800,0.28432314,85.529,85.493,4.18030608]
[1772597319180,1.89289443,85.53,85.493,4.18030608]
[1772597319399,1.89289443,85.54,85.493,4.18030608]
[1772597319589,1.89289443,85.54,85.501,4.18030608]
[1772597320379,1.89289443,85.54,85.5,1.89289443]
[1772597320380,1.89289443,85.54,85.503,4.18030608]
[1772597320584,4.10272496,85.529,85.503,4.18030608]
[1772597322899,4.10272496,85.519,85.491,11.69713771]
[1772597323090,4.10272496,85.509,85.485,11.69793671]
[1772597323293,4.10272496,85.509,85.482,4.18030608]
[1772597323491,4.10272496,85.499,85.475,11.69919242]
[1772597323900,1.89289443,85.5,85.476,4.18030608]
[1772597324205,4.10272496,85.499,85.475,11.69919242]
[1772597324408,4.10272496,85.495,85.47,11.69990274]
[1772597324910,4.10272496,85.495,85.468,4.18030608]
[1772597324911,4.10272496,85.495,85.472,11.69973792]
[1772597325110,4.10272496,85.495,85.472,15.880044]
[1772597325287,11.98036636,85.499,85.473,4.18030608]
[1772597325494,1.89289443,85.49,85.467,11.70035645]
[1772597326413,5.99561939,85.49,85.467,11.70035645]
[1772597326710,4.3870481,85.488,85.458,4.18030608]
[1772597326921,1.89289443,85.48,85.458,4.18030608]
[1772597327212,1.89289443,85.48,85.459,11.70151768]
[1772597327592,4.3870481,85.488,85.459,15.88182376]
[1772597327790,4.3870481,85.488,85.459,11.70151768]
[1772597328120,4.3870481,85.488,85.46,4.18030608]
[1772597328414,0.28432314,85.486,85.46,4.18030608]
[1772597331416,4.10272496,85.485,85.461,11.70124384]
[1772597332406,11.69643512,85.497,85.462,4.17659048]
[1772597332813,4.10272496,85.496,85.462,4.17659048]
[1772597333990,4.10272496,85.496,85.463,11.70097001]
[1772597334193,4.10272496,85.496,85.464,4.17659048]
[1772597334587,4.10272496,85.489,85.464,4.17659048]
[1772597335114,1.89289443,85.47,85.446,4.17659048]
[1772597337715,0.28432314,85.477,85.448,4.17659048]
[1772597338813,0.28432314,85.477,85.449,15.87947758]
[1772597338814,1.89289443,85.47,85.449,15.87947758]
[1772597339002,1.89289443,85.47,85.45,4.17659048]
[1772597339498,4.06169771,85.459,85.426,4.17659048]
[1772597339695,1.89289443,85.46,85.428,4.17659048]
[1772597339894,4.02108073,85.459,85.428,4.17659048]
[1772597340417,1.89289443,85.46,85.428,4.17659048]
[1772597340659,4.02108073,85.535,85.431,4.17659048]
[1772597340917,1.89289443,85.47,85.444,4.17659048]
[1772597341124,1.89289443,85.47,85.442,11.70384588]
[1772597341125,4.02108073,85.469,85.442,11.70384588]
[1772597341725,1.89289443,85.46,85.42,2.09289443]
[1772597341921,4.02108073,85.459,85.422,4.17659048]
[1772597342918,0.28432314,85.459,85.431,4.17659048]
[1772597343219,1.89289443,85.49,85.451,4.17659048]
[1772597343428,0.28432314,85.489,85.451,4.17659048]
[1772597343619,11.69631046,85.498,85.46,1.89289443]
[1772597343818,11.69550804,85.503,85.461,4.17659048]
[1772597344005,0.28432314,85.499,85.461,4.17659048]
[1772597344527,4.02108073,85.498,85.461,4.17659048]
[1772597344727,1.89289443,85.49,85.461,4.17659048]
[1772597345021,4.02108073,85.489,85.461,4.17659048]
[1772597345525,4.02108073,85.489,85.463,4.17659048]
[1772597345907,1.89289443,85.48,85.457,11.70166978]
[1772597346707,1.89289443,85.48,85.458,4.17659048]
[1772597347222,0.28432314,85.498,85.461,4.17659048]
[1772597347618,0.28432314,85.496,85.461,4.17659048]
[1772597347821,1.89289443,85.49,85.461,4.17659048]
[1772597349923,0.28432314,85.496,85.463,4.17659048]
[1772597351629,1.89289443,85.5,85.463,4.17659048]
[1772597352104,4.02108073,85.499,85.465,4.17659048]
[1772597353110,4.02108073,85.479,85.441,4.17659048]
[1772597353917,4.02108073,85.487,85.441,4.17659048]
[1772597354425,4.02108073,85.499,85.451,4.17659048]
[1772597354926,4.02108073,85.499,85.46,1.89289443]
[1772597355128,0.28432314,85.498,85.461,4.17659048]
[1772597355428,4.02108073,85.489,85.461,4.17659048]
[1772597355806,1.89289443,85.49,85.461,4.17659048]
[1772597356139,4.02108073,85.489,85.461,4.17659048]
[1772597356428,5.91397516,85.48,85.454,4.17659048]
[1772597356723,0.28432314,85.479,85.453,11.70223579]
[1772597356932,0.28432314,85.479,85.454,4.17659048]
[1772597357825,11.69646666,85.496,85.454,4.17659048]
[1772597358126,0.28432314,85.495,85.454,4.17659048]
[1772597358325,0.28432314,85.495,85.461,4.29123555]
[1772597358632,4.02108073,85.503,85.461,4.29123555]
[1772597358925,1.89289443,85.5,85.461,4.29123555]
[1772597359104,0.28432314,85.498,85.461,4.29123555]
[1772597359311,0.28432314,85.494,85.455,40.95722894]
[1772597359510,0.28432314,85.479,85.448,15.99425961]
[1772597359812,0.28432314,85.479,85.449,4.41106323]
[1772597360117,4.30540387,85.479,85.449,4.41106323]
[1772597360325,0.28432314,85.477,85.45,11.70275014]
[1772597360532,0.28432314,85.477,85.451,4.41106323]
[1772597360960,0.28432314,85.478,85.451,4.41106323]
[1772597361708,0.28432314,85.479,85.451,4.41106323]
[1772597362110,4.02108073,85.487,85.451,4.41106323]
[1772597362435,4.02108073,85.487,85.45,40.9596255]
[1772597362436,0.28432314,85.489,85.453,4.41106323]
[1772597363628,4.30540387,85.489,85.453,4.41106323]
[1772597364236,4.02108073,85.498,85.453,4.41106323]
[1772597364426,4.02108073,85.479,85.441,4.41106323]
[1772597364621,11.6973703,85.49,85.441,4.41106323]
[1772597364622,4.02108073,85.469,85.441,16.11504609]
[1772597366539,4.02108073,85.459,85.436,11.70462186]
[1772597367120,1.89289443,85.46,85.437,4.41106323]
[1772597368335,0.28432314,85.465,85.439,4.41106323]
[1772597368540,4.417437,85.465,85.439,0.20862419]
[1772597371328,4.417437,85.465,85.441,4.41106323]
[1772597371544,0.28432314,85.469,85.441,4.41106323]
[1772597372034,4.417437,85.469,85.441,4.41106323]
[1772597373638,4.13311386,85.468,85.442,16.11490911]
[1772597374043,4.13311386,85.468,85.435,16.11583119]
[1772597374334,1.89289443,85.46,85.435,16.11583119]
[1772597374519,6.02741987,85.46,85.436,4.41106323]
[1772597375122,6.02741987,85.46,85.436,16.11573105]
[1772597375541,4.13311386,85.46,85.436,16.11573105]
[1772597375740,13.59581057,85.46,85.436,16.11573105]
[1772597375941,4.13311386,85.459,85.436,11.70466782]
[1772597377644,4.13311386,85.459,85.436,4.41106323]
[1772597377941,4.13311386,85.455,85.421,45.38443943]
[1772597378142,1.89430601,85.45,85.421,16.1177864]
[1772597378346,4.13311386,85.449,85.421,16.1177864]
[1772597378529,4.13311386,85.449,85.422,4.41106323]
[1772597379229,4.13311386,85.455,85.424,4.41106323]
[1772597379932,1.89430601,85.45,85.424,4.41106323]
[1772597380835,4.13311386,85.452,85.426,4.41106323]
[1772597381137,1.89430601,85.45,85.426,4.41106323]
[1772597381319,0.28432314,85.457,85.426,4.41106323]
[1772597381528,4.417437,85.459,85.431,4.41106323]
[1772597382039,4.13311386,85.467,85.431,4.41106323]
[1772597382227,1.89430601,85.47,85.431,4.41106323]
[1772597382543,1.89430601,85.46,85.431,4.41106323]
[1772597384548,1.89430601,85.46,85.433,4.41106323]
[1772597386427,1.89430601,85.46,85.432,11.70521584]
[1772597386428,1.89430601,85.46,85.434,11.70494182]
[1772597386746,4.37610586,85.439,85.4,0.2]
[1772597386952,0.28432314,85.408,85.38,0.2]
[1772597387129,1.89430601,85.39,85.38,0.2]
[1772597387626,1.89430601,85.39,85.36,4.41106323]
[1772597388248,1.89430601,85.39,85.362,4.49183487]
[1772597388458,0.28432314,85.409,85.364,4.49183487]
[1772597388758,0.28432314,85.419,85.381,4.49183487]
[1772597389631,0.28432314,85.419,85.38,1.89430601]
[1772597389632,0.28432314,85.419,85.383,4.49183487]
[1772597389831,1.89430601,85.41,85.383,4.49183487]
[1772597390033,0.28432314,85.409,85.383,4.49183487]
[1772597392040,1.89430601,85.4,85.383,4.49183487]
[1772597392253,1.89430601,85.4,85.382,11.71207045]
[1772597392638,1.89430601,85.4,85.382,16.20390532]
[1772597392947,1.89430601,85.4,85.382,11.71207045]
[1772597393157,0.28432314,85.409,85.383,4.49183487]
[1772597394541,1.89430601,85.42,85.385,4.49183487]
[1772597394858,1.89430601,85.41,85.385,4.49183487]
[1772597395937,1.89430601,85.46,85.401,4.49183487]
[1772597396136,1.89430601,85.45,85.411,4.49183487]
[1772597396549,1.89430601,85.44,85.413,4.49183487]
[1772597397253,1.89430601,85.45,85.413,4.49183487]
[1772597397865,1.89430601,85.46,85.421,4.49183487]
[1772597398367,1.89430601,85.47,85.431,4.49183487]
[1772597398664,0.06549305,85.469,85.433,4.49183487]
[1772597398868,1.89430601,85.48,85.441,4.49183487]
[1772597399067,24.18759331,85.488,85.451,4.49183487]
[1772597399249,1.89430601,85.48,85.451,4.49183487]
[1772597399950,0.28432314,85.479,85.451,4.49183487]
[1772597400760,0.28432314,85.479,85.452,11.70247624]
[1772597401055,0.28432314,85.477,85.451,4.49183487]
[1772597401243,1.89430601,85.47,85.451,4.49183487]
[1772597401451,0.28432314,85.479,85.451,4.49183487]
[1772597401956,0.28432314,85.479,85.452,11.70247624]
[1772597402861,1.89430601,85.47,85.445,4.49183487]
[1772597403159,0.34981619,85.479,85.445,4.49183487]
[1772597403540,1.89430601,85.47,85.445,4.49183487]
[1772597404259,1.89430601,85.46,85.436,4.49183487]
[1772597405560,24.12210026,85.488,85.451,4.49183487]
[1772597405740,1.89430601,85.49,85.46,1.89430601]
[1772597405948,1.89430601,85.49,85.461,4.49183487]
[1772597406248,10.13077413,85.568,85.432,4.49183487]
[1772597406249,0.06549305,85.469,85.432,4.49183487]
[1772597406448,1.89430601,85.46,85.432,4.49183487]
[1772597407645,1.89430601,85.46,85.433,11.70507883]
[1772597407864,1.89430601,85.46,85.434,4.49183487]
[1772597408365,0.34981619,85.469,85.434,4.49183487]
[1772597408566,0.28432314,85.469,85.434,4.49183487]
[1772597410052,0.28432314,85.469,85.436,4.49183487]
[1772597410243,11.69978396,85.472,85.436,4.49183487]
[1772597410565,5.63764625,85.47,85.436,4.49183487]
[1772597411742,5.7031393,85.47,85.437,11.70453082]
[1772597411949,0.06549305,85.469,85.438,4.49183487]
[1772597414072,0.06549305,85.469,85.44,4.49183487]
[1772597414377,0.06549305,85.477,85.441,4.49183487]
[1772597416365,5.63764625,85.47,85.443,4.49183487]
[1772597418079,0.06549305,85.477,85.443,4.49183487]
[1772597418280,0.06549305,85.477,85.444,11.70357193]
[1772597418474,5.63764625,85.47,85.445,4.4669227]
[1772597419461,0.06549305,85.477,85.445,4.4669227]
[1772597419658,5.63764625,85.48,85.445,4.4669227]
[1772597420765,5.63764625,85.5,85.461,4.4669227]
[1772597422679,17.51547125,85.5,85.461,4.4669227]
[1772597423572,5.63764625,85.49,85.463,4.4669227]
[1772597423979,0.06549305,85.489,85.463,4.4669227]
[1772597424189,5.63764625,85.49,85.463,4.4669227]
[1772597424479,4.82477569,85.529,85.481,4.4669227]
[1772597424677,5.63764625,85.53,85.491,4.4669227]
[1772597424881,5.63764625,85.53,85.501,4.4669227]
[1772597425177,0.06549305,85.529,85.501,4.4669227]
[1772597425988,5.63764625,85.53,85.503,4.4669227]
[1772597426362,11.69194074,85.529,85.503,4.4669227]
[1772597426562,5.63764625,85.52,85.503,4.4669227]
[1772597426763,5.63764625,85.52,85.49,4.4669227]
[1772597427177,5.63764625,85.52,85.49,10.10456895]
[1772597427390,11.69194074,85.529,85.491,4.4669227]
[1772597427564,5.63764625,85.53,85.491,4.4669227]
[1772597428176,5.63764625,85.53,85.493,4.4669227]
[1772597428474,11.69194074,85.529,85.493,4.4669227]
[1772597429065,1.89150006,85.52,85.493,4.4669227]
[1772597429894,1.89150006,85.53,85.495,4.4669227]
[1772597430667,1.89150006,85.53,85.501,4.4669227]
[1772597430966,1.89150006,85.53,85.502,11.69563285]
[1772597431280,1.89150006,85.53,85.503,4.4669227]
[1772597431986,11.69194074,85.529,85.503,4.4669227]
[1772597433590,11.69194074,85.529,85.47,1.89150006]
[1772597433591,0.1,85.61,85.521,0.28432314]
[1772597433771,0.1,85.71,85.601,4.40839343]
[1772597433966,4.14386569,85.649,85.61,6.29989349]
[1772597434272,1.89150006,85.66,85.621,4.40839343]
[1772597434574,5.71162683,85.67,85.631,4.40839343]
[1772597434903,11.67283381,85.669,85.631,4.40839343]
[1772597435271,5.61162683,85.65,85.611,4.40839343]
[1772597435481,5.61162683,85.65,85.621,4.40839343]
[1772597435700,5.71162683,85.67,85.631,4.40839343]
[1772597436183,11.67283381,85.669,85.631,4.40839343]
[1772597436386,1.92082475,85.669,85.631,4.40839343]
[1772597437298,5.61162683,85.65,85.631,4.40839343]
[1772597437595,1.92082475,85.649,85.62,4.40839343]
[1772597437779,5.61162683,85.63,85.612,4.40839343]
[1772597437972,5.61162683,85.64,85.612,4.40839343]
[1772597438579,1.92082475,85.642,85.612,4.40839343]
[1772597438886,1.92082475,85.649,85.612,4.40839343]
[1772597439276,5.61162683,85.65,85.612,4.40839343]
[1772597439484,5.61162683,85.66,85.621,4.40839343]
[1772597439684,11.67419652,85.659,85.621,4.40839343]
[1772597440175,5.61162683,85.66,85.631,4.40839343]
[1772597441096,1.92082475,85.667,85.631,4.40839343]
[1772597441296,17.38436579,85.67,85.641,4.40839343]
[1772597441468,5.71162683,85.69,85.652,4.40839343]
[1772597442489,5.61162683,85.68,85.652,4.40839343]
[1772597442886,5.61162683,85.67,85.64,5.61162683]
[1772597443199,0.1,85.69,85.624,4.40839343]
[1772597443200,5.61162683,85.65,85.624,4.40839343]
[1772597443688,5.61162683,85.67,85.631,4.40839343]
[1772597443993,5.61162683,85.67,85.594,3.69383402]
[1772597443994,5.61162683,85.64,85.61,5.61162683]
[1772597444183,1.92082475,85.649,85.611,4.40839343]
[1772597444776,5.61162683,85.65,85.611,4.40839343]
[1772597445171,5.61162683,85.66,85.621,4.40839343]
[1772597445687,5.61162683,85.67,85.631,4.40839343]
[1772597445877,17.28435373,85.67,85.631,4.40839343]
[1772597446078,5.61162683,85.67,85.631,4.40839343]
[1772597446278,5.61162683,85.68,85.641,4.40839343]
[1772597447591,5.71162683,85.69,85.651,4.40839343]
[1772597447793,0.1,85.69,85.661,4.40839343]
[1772597448197,0.1,85.69,85.671,4.13636649]
[1772597449794,11.66779455,85.706,85.672,15.80879155]
[1772597450093,5.61162683,85.7,85.672,4.13636649]
[1772597450387,5.61162683,85.7,85.66,5.61162683]
[1772597450388,1.92082475,85.699,85.664,11.6734053]
[1772597450791,1.92082475,85.699,85.665,4.13636649]
[1772597451488,5.61162683,85.7,85.665,4.13636649]
[1772597451689,5.61162683,85.7,85.668,4.13636649]
[1772597451882,1.92082475,85.699,85.668,4.13636649]
[1772597452090,5.61162683,85.7,85.668,4.13636649]
[1772597452285,19.2997016,85.71,85.668,4.13636649]
[1772597452796,19.2997016,85.71,85.671,4.13636649]
[1772597453293,1.92082475,85.709,85.671,4.13636649]
[1772597453872,0.1,85.71,85.681,4.13636649]
[1772597454295,0.1,85.71,85.667,4.13636649]
[1772597454296,5.61162683,85.7,85.667,4.13636649]
[1772597455194,7.53245158,85.7,85.667,4.13636649]
[1772597455394,40.83585153,85.709,85.667,4.13636649]
[1772597455395,5.61162683,85.69,85.667,4.13636649]
[1772597456531,1.92082475,85.679,85.64,4.13636649]
[1772597456686,5.61162683,85.67,85.64,4.13636649]
[1772597458895,5.61162683,85.67,85.642,4.13636649]
[1772597459076,1.92082475,85.677,85.642,4.13636649]
[1772597459273,5.61162683,85.67,85.642,4.13636649]
[1772597460502,5.61162683,85.66,85.626,4.13636649]
[1772597460799,5.61162683,85.66,85.631,4.13636649]
[1772597460999,11.67283381,85.669,85.631,4.13636649]
[1772597461997,5.61162683,85.7,85.604,11.68169711]
[1772597461998,1.92082475,85.689,85.641,4.13636649]
[1772597462203,5.61162683,85.68,85.641,4.13636649]
[1772597462502,1.92082475,85.689,85.651,4.13636649]
[1772597463077,5.61162683,85.69,85.653,4.13636649]
[1772597463410,46.63105,85.78,85.652,11.6751506]
[1772597463411,7.63245158,85.74,85.681,4.13636649]
[1772597463698,11.76461198,85.73,85.701,4.13636649]
[1772597464092,0.1,85.73,85.701,4.13636649]
[1772597464279,0.1,85.73,85.71,5.61162683]
[1772597464480,0.1,85.73,85.711,4.13636649]
[1772597464895,11.66466423,85.729,85.711,4.13636649]
[1772597465094,11.66466423,85.729,85.701,11.66847528]
[1772597465302,11.66466423,85.729,85.701,4.13636649]
[1772597465691,11.66466423,85.729,85.701,15.80484177]
[1772597465895,11.66466423,85.729,85.702,4.13636649]
[1772597466599,0.1,85.73,85.702,4.13636649]
[1772597466803,0.1,85.73,85.701,11.66847528]
[1772597466804,0.1,85.73,85.711,4.13636649]
[1772597468990,0.1,85.73,85.712,11.66697778]
[1772597469990,5.71162683,85.74,85.712,11.66697778]
[1772597469991,0.1,85.74,85.713,4.13636649]
[1772597470190,0.1,85.76,85.721,4.13636649]
[1772597470191,11.66099568,85.756,85.721,4.13636649]
[1772597470385,5.61162683,85.75,85.721,4.13636649]
[1772597472211,11.66194357,85.749,85.721,4.13636649]